[Event "Pobeskydi 2026"]
[Site "Frydek-Mistek, Czech Republic"]
[Date "2026.04.02"]
[Round "1.10"]
[White "Zeman, Daniel Nikolas"]
[Black "Kendall, Arthur"]
[Result "1-0"]
[TimeControl "90 min+30s/move"]
[WhiteTitle "-"]
[BlackTitle "-"]
[WhiteFideId "23717130"]
[BlackFideId "343410960"]
[WhiteElo "1957"]
[BlackElo "2032"]

1. e4 {[%clk 01:30:57]} {[%emt 00:00:02]} e6 {[%clk 01:30:59]} {[%emt
00:00:02]} 2. d4 {[%clk 01:31:10]} {[%emt 00:00:16]} d5 {[%clk 01:31:27]}
{[%emt 00:00:02]} 3. exd5 {[%clk 01:31:32]} {[%emt 00:00:08]} exd5 {[%clk
01:31:52]} {[%emt 00:00:06]} 4. Bd3 {[%clk 01:31:59]} {[%emt 00:00:03]} Nc6
{[%clk 01:32:08]} {[%emt 00:00:13]} 5. c3 {[%clk 01:32:13]} {[%emt 00:00:17]}
Bd6 {[%clk 01:32:16]} {[%emt 00:00:21]} 6. Nf3 {[%clk 01:32:36]} {[%emt
00:00:07]} Bg4 {[%clk 01:29:44]} {[%emt 00:03:02]} 7. O-O {[%clk 01:32:06]}
{[%emt 00:01:01]} Qd7 {[%clk 01:26:55]} {[%emt 00:03:20]} 8. b4 {[%clk
01:30:34]} {[%emt 00:02:02]} Nge7 {[%clk 01:25:42]} {[%emt 00:01:41]} 9. Nbd2
{[%clk 01:30:01]} {[%emt 00:01:05]} O-O {[%clk 01:22:38]} {[%emt 00:03:33]} 10.
Re1 {[%clk 01:24:09]} {[%emt 00:06:22]} Rae8 {[%clk 01:19:38]} {[%emt
00:03:29]} 11. Bb2 {[%clk 01:21:22]} {[%emt 00:03:18]} Bf5 {[%clk 01:14:36]}
{[%emt 00:05:32]} 12. Nf1 {[%clk 01:20:07]} {[%emt 00:01:45]} Bxd3 {[%clk
01:01:44]} {[%emt 00:13:22]} 13. Qxd3 {[%clk 01:20:35]} {[%emt 00:00:02]} Ng6
{[%clk 00:46:26]} {[%emt 00:15:48]} 14. Ne3 {[%clk 01:15:33]} {[%emt 00:05:32]}
Nce7 {[%clk 00:45:40]} {[%emt 00:01:15]} 15. Rad1 {[%clk 01:12:29]} {[%emt
00:03:35]} c6 {[%clk 00:45:11]} {[%emt 00:00:59]} 16. a4 {[%clk 01:10:49]}
{[%emt 00:02:11]} f5 {[%clk 00:41:56]} {[%emt 00:03:45]} 17. h3 {[%clk
01:08:13]} {[%emt 00:03:05]} Nf4 {[%clk 00:36:10]} {[%emt 00:06:14]} 18. Qf1
{[%clk 01:05:05]} {[%emt 00:03:40]} Neg6 {[%clk 00:34:12]} {[%emt 00:02:27]} 19.
b5 {[%clk 01:00:14]} {[%emt 00:05:22]} Nh5 {[%clk 00:29:22]} {[%emt 00:05:20]}
20. c4 {[%clk 00:57:21]} {[%emt 00:03:24]} Bb4 {[%clk 00:24:51]} {[%emt
00:05:00]} 21. Re2 {[%clk 00:54:14]} {[%emt 00:03:38]} dxc4 {[%clk 00:24:06]}
{[%emt 00:01:13]} 22. bxc6 {[%clk 00:28:18]} {[%emt 00:26:27]} Qxc6 {[%clk
00:23:13]} {[%emt 00:01:23]} 23. Rc2 {[%clk 00:23:26]} {[%emt 00:05:22]} c3
{[%clk 00:22:50]} {[%emt 00:00:53]} 24. d5 {[%clk 00:22:58]} {[%emt 00:00:59]}
Qc5 {[%clk 00:21:00]} {[%emt 00:02:11]} 25. Bxc3 {[%clk 00:16:24]} {[%emt
00:07:14]} Bxc3 {[%clk 00:21:09]} {[%emt 00:00:20]} 26. Rd3 {[%clk 00:16:52]}
{[%emt 00:00:02]} Ng3 {[%clk 00:18:32]} {[%emt 00:03:07]} 27. fxg3 {[%clk
00:13:50]} {[%emt 00:03:33]} Rxe3 {[%clk 00:18:51]} {[%emt 00:00:10]} 28. Rcxc3
{[%clk 00:14:00]} {[%emt 00:00:21]} Qxc3 {[%clk 00:19:13]} {[%emt 00:00:08]} 29.
Rxc3 {[%clk 00:14:14]} {[%emt 00:00:16]} Rxc3 {[%clk 00:19:40]} {[%emt
00:00:02]} 30. Qe1 {[%clk 00:12:27]} {[%emt 00:02:17]} Rcc8 {[%clk 00:19:00]}
{[%emt 00:01:10]} 31. Qe6+ {[%clk 00:09:01]} {[%emt 00:03:56]} Kh8 {[%clk
00:19:26]} {[%emt 00:00:04]} 32. d6 {[%clk 00:09:16]} {[%emt 00:00:16]} Rce8
{[%clk 00:18:35]} {[%emt 00:01:20]} 33. Qd5 {[%clk 00:09:28]} {[%emt 00:00:19]}
h6 {[%clk 00:17:25]} {[%emt 00:01:40]} 34. d7 {[%clk 00:09:24]} {[%emt
00:00:34]} Rb8 {[%clk 00:14:36]} {[%emt 00:03:19]} 35. Qd6 {[%clk 00:08:19]}
{[%emt 00:01:36]} Kh7 {[%clk 00:14:45]} {[%emt 00:00:21]} 36. Nd4 {[%clk
00:07:10]} {[%emt 00:01:39]} Rbd8 {[%clk 00:14:50]} {[%emt 00:00:25]} 37. Ne6
{[%clk 00:06:11]} {[%emt 00:01:29]} Rf6 {[%clk 00:14:00]} {[%emt 00:01:19]} 38.
Qc7 {[%clk 00:06:07]} {[%emt 00:00:35]} Rxe6 {[%clk 00:13:29]} {[%emt
00:01:01]} 39. Qxd8 {[%clk 00:06:31]} {[%emt 00:00:05]} Ne5 {[%clk 00:13:45]}
{[%emt 00:00:13]} 40. Qe8 {[%clk 00:06:28]} {[%emt 00:00:34]} 1-0

[Event "Pobeskydi 2026"]
[Site "Frydek-Mistek, Czech Republic"]
[Date "2026.04.02"]
[Round "1.11"]
[White "Bjolek, Jan"]
[Black "Langmaier, Michal"]
[Result "0-1"]
[TimeControl "90 min+30s/move"]
[WhiteTitle "-"]
[BlackTitle "-"]
[WhiteFideId "23725800"]
[BlackFideId "23727705"]
[WhiteElo "2026"]
[BlackElo "1949"]

1. d4 {[%clk 01:30:59]} d5 {[%clk 01:30:45]} {[%emt 00:00:15]} 2. Bf4 {[%clk
01:31:23]} {[%emt 00:00:05]} Nf6 {[%clk 01:31:06]} {[%emt 00:00:10]} 3. e3
{[%clk 01:31:49]} {[%emt 00:00:04]} g6 {[%clk 01:31:26]} {[%emt 00:00:10]} 4.
Nc3 {[%clk 01:31:58]} {[%emt 00:00:21]} a6 {[%clk 01:30:44]} {[%emt 00:01:12]}
5. Be2 {[%clk 01:31:28]} {[%emt 00:01:00]} Bg7 {[%clk 01:30:54]} {[%emt
00:00:20]} 6. h4 {[%clk 01:31:37]} {[%emt 00:00:20]} h5 {[%clk 01:22:57]}
{[%emt 00:08:27]} 7. Nf3 {[%clk 01:31:56]} {[%emt 00:00:12]} c5 {[%clk
01:16:08]} {[%emt 00:07:19]} 8. Qd2 {[%clk 01:25:08]} {[%emt 00:07:18]} Nbd7
{[%clk 00:59:39]} {[%emt 00:16:58]} 9. Ne5 {[%clk 01:15:04]} {[%emt 00:10:35]}
b5 {[%clk 00:46:03]} {[%emt 00:14:06]} 10. f3 {[%clk 01:10:59]} {[%emt
00:04:36]} Bb7 {[%clk 00:38:34]} {[%emt 00:07:58]} 11. Nd1 {[%clk 01:02:13]}
{[%emt 00:09:16]} Rc8 {[%clk 00:32:25]} {[%emt 00:06:39]} 12. c3 {[%clk
00:55:19]} {[%emt 00:07:25]} Nf8 {[%clk 00:29:45]} {[%emt 00:03:09]} 13. a4
{[%clk 00:37:54]} {[%emt 00:17:56]} c4 {[%clk 00:26:03]} {[%emt 00:04:11]} 14.
b4 {[%clk 00:36:43]} {[%emt 00:01:41]} Ne6 {[%clk 00:24:22]} {[%emt 00:02:11]}
15. Nf2 {[%clk 00:23:50]} {[%emt 00:13:23]} Qb6 {[%clk 00:11:52]} {[%emt
00:13:00]} 16. Bd1 {[%clk 00:17:58]} {[%emt 00:06:23]} a5 {[%clk 00:08:27]}
{[%emt 00:03:55]} 17. bxa5 {[%clk 00:17:41]} {[%emt 00:00:47]} Qxa5 {[%clk
00:08:41]} {[%emt 00:00:16]} 18. Qb2 {[%clk 00:15:26]} {[%emt 00:02:44]} Ra8
{[%clk 00:08:41]} {[%emt 00:00:30]} 19. O-O {[%clk 00:09:10]} {[%emt 00:06:46]}
O-O {[%clk 00:07:37]} {[%emt 00:01:34]} 20. Bc2 {[%clk 00:08:15]} {[%emt
00:01:25]} bxa4 {[%clk 00:02:37]} {[%emt 00:05:30]} 21. Rxa4 {[%clk 00:01:15]}
{[%emt 00:07:31]} Qc7 {[%clk 00:02:25]} {[%emt 00:00:41]} 22. Nxg6 {[%clk
00:01:16]} {[%emt 00:00:29]} Nxf4 {[%clk 00:02:38]} {[%emt 00:00:17]} 23. Nxf4
{[%clk 00:01:44]} {[%emt 00:00:02]} Bc6 {[%clk 00:01:33]} {[%emt 00:01:35]} 24.
Rb4 {[%clk 00:01:09]} {[%emt 00:01:05]} Rfb8 {[%clk 00:00:46]} {[%emt
00:01:17]} 25. Rb1 {[%clk 00:01:13]} {[%emt 00:00:26]} Rxb4 26. Qxb4 {[%clk
00:01:42]} Bh6 {[%clk 00:00:45]} {[%emt 00:00:50]} 27. N2h3 {[%clk 00:02:02]}
{[%emt 00:00:11]} e5 {[%clk 00:00:46]} {[%emt 00:00:28]} 28. Qb6 {[%clk
00:01:10]} {[%emt 00:01:22]} Qxb6 {[%clk 00:00:45]} {[%emt 00:00:32]} 29. Rxb6
{[%clk 00:01:38]} {[%emt 00:00:01]} exf4 {[%clk 00:00:51]} {[%emt 00:00:23]} 30.
Rxc6 {[%clk 00:02:02]} {[%emt 00:00:06]} fxe3 {[%clk 00:01:06]} {[%emt
00:00:15]} 31. Rb6 {[%clk 00:00:34]} {[%emt 00:01:59]} Ra1+ {[%clk 00:01:19]}
{[%emt 00:00:16]} 32. Bb1 {[%clk 00:00:39]} {[%emt 00:00:25]} Kg7 {[%clk
00:01:20]} {[%emt 00:00:30]} 33. Kf1 {[%clk 00:00:58]} {[%emt 00:00:11]} Ra3
{[%clk 00:01:41]} {[%emt 00:00:08]} 34. Ke2 {[%clk 00:00:44]} {[%emt 00:00:44]}
Rxc3 {[%clk 00:01:28]} {[%emt 00:00:43]} 35. Ng5 {[%clk 00:01:08]} {[%emt
00:00:06]} Bxg5 {[%clk 00:00:43]} {[%emt 00:01:16]} 36. hxg5 {[%clk 00:01:37]}
Nd7 {[%clk 00:00:33]} {[%emt 00:00:40]} 37. Rd6 {[%clk 00:01:25]} {[%emt
00:00:41]} Nf8 {[%clk 00:00:54]} {[%emt 00:00:09]} 38. Rxd5 {[%clk 00:01:21]}
{[%emt 00:00:35]} Ne6 {[%clk 00:01:20]} {[%emt 00:00:04]} 39. g3 {[%clk
00:01:23]} {[%emt 00:00:28]} h4 {[%clk 00:01:45]} {[%emt 00:00:05]} 40. Rd7
{[%clk 00:00:32]} {[%emt 00:01:20]} hxg3 {[%clk 00:02:08]} {[%emt 00:00:08]} 41.
g6 {[%clk 00:00:47]} {[%emt 00:00:15]} Nf4+ {[%clk 00:02:19]} {[%emt 00:00:18]}
42. Kf1 {[%clk 00:00:56]} {[%emt 00:00:21]} Rc1# {[%clk 00:02:42]} {[%emt
00:00:07]} 0-1

[Event "Pobeskydi 2026"]
[Site "Frydek-Mistek, Czech Republic"]
[Date "2026.04.02"]
[Round "2.1"]
[White "Walek, Petr"]
[Black "Lichorad, Mateusz"]
[Result "1-0"]
[TimeControl "90 min+30s/move"]
[WhiteTitle "-"]
[BlackTitle "-"]
[WhiteFideId "339393"]
[BlackFideId "21817693"]
[WhiteElo "2304"]
[BlackElo "2039"]

1. e4 {[%clk 01:30:58]} c5 {[%clk 01:30:54]} {[%emt 00:00:06]} 2. Nc3 {[%clk
01:31:22]} {[%emt 00:00:07]} Nc6 {[%clk 01:31:19]} {[%emt 00:00:05]} 3. Nge2
{[%clk 01:31:45]} {[%emt 00:00:07]} g6 {[%clk 01:24:30]} {[%emt 00:07:20]} 4.
d4 {[%clk 01:32:10]} {[%emt 00:00:06]} cxd4 {[%clk 01:24:56]} {[%emt 00:00:03]}
5. Nxd4 {[%clk 01:32:34]} {[%emt 00:00:06]} Bg7 {[%clk 01:25:23]} {[%emt
00:00:03]} 6. Be3 {[%clk 01:32:57]} {[%emt 00:00:07]} Nf6 {[%clk 01:21:28]}
{[%emt 00:04:25]} 7. Bc4 {[%clk 01:32:53]} {[%emt 00:00:33]} Qa5 {[%clk
01:16:42]} {[%emt 00:05:17]} 8. O-O {[%clk 01:33:04]} {[%emt 00:00:19]} O-O
{[%clk 01:13:36]} {[%emt 00:03:35]} 9. Bb3 {[%clk 01:33:29]} {[%emt 00:00:05]}
d6 {[%clk 01:12:01]} {[%emt 00:02:06]} 10. h3 {[%clk 01:33:54]} {[%emt
00:00:05]} Bd7 {[%clk 01:08:01]} {[%emt 00:04:29]} 11. f4 {[%clk 01:34:18]}
{[%emt 00:00:05]} Rac8 {[%clk 00:52:43]} {[%emt 00:15:49]} 12. Nf3 {[%clk
01:34:11]} {[%emt 00:00:37]} Nh5 {[%clk 00:35:59]} {[%emt 00:17:14]} 13. Qe1
{[%clk 01:22:04]} {[%emt 00:12:37]} e5 {[%clk 00:27:39]} {[%emt 00:08:50]} 14.
f5 {[%clk 00:51:41]} {[%emt 00:30:53]} Nd4 {[%clk 00:21:50]} {[%emt 00:06:19]}
15. fxg6 {[%clk 00:37:39]} {[%emt 00:14:32]} hxg6 {[%clk 00:22:10]} {[%emt
00:00:10]} 16. Ng5 {[%clk 00:38:04]} {[%emt 00:00:06]} Ne6 {[%clk 00:17:50]}
{[%emt 00:04:50]} 17. Rxf7 {[%clk 00:22:50]} {[%emt 00:15:44]} Rxf7 {[%clk
00:17:12]} {[%emt 00:01:07]} 18. Nxe6 {[%clk 00:23:16]} {[%emt 00:00:04]} Rf6
{[%clk 00:15:16]} {[%emt 00:02:26]} 19. Nc5+ {[%clk 00:21:11]} {[%emt
00:02:35]} 1-0

[Event "Pobeskydi 2026"]
[Site "Frydek-Mistek, Czech Republic"]
[Date "2026.04.02"]
[Round "2.2"]
[White "Sigut, Ondrej"]
[Black "Karas, Marek"]
[Result "1/2-1/2"]
[TimeControl "90 min+30s/move"]
[WhiteTitle "-"]
[BlackTitle "-"]
[WhiteFideId "23712813"]
[BlackFideId "14928558"]
[WhiteElo "2016"]
[BlackElo "2232"]

1. e4 {[%clk 01:30:56]} {[%emt 00:00:03]} c5 {[%clk 01:30:56]} {[%emt
00:00:05]} 2. Nf3 {[%clk 01:31:22]} {[%emt 00:00:04]} Nc6 {[%clk 01:31:18]}
{[%emt 00:00:07]} 3. Bb5 {[%clk 01:31:42]} {[%emt 00:00:10]} e5 {[%clk
01:29:36]} {[%emt 00:02:11]} 4. O-O {[%clk 01:30:03]} {[%emt 00:02:11]} Bd6
{[%clk 01:28:53]} {[%emt 00:01:10]} 5. c3 {[%clk 01:26:07]} {[%emt 00:04:29]}
a6 {[%clk 01:29:00]} {[%emt 00:00:23]} 6. Ba4 {[%clk 01:25:39]} {[%emt
00:00:58]} b5 {[%clk 01:29:21]} {[%emt 00:00:07]} 7. Bc2 {[%clk 01:24:53]}
{[%emt 00:01:16]} Nge7 {[%clk 01:29:40]} {[%emt 00:00:10]} 8. d4 {[%clk
01:23:33]} {[%emt 00:01:53]} cxd4 {[%clk 01:29:57]} {[%emt 00:00:13]} 9. cxd4
{[%clk 01:23:57]} {[%emt 00:00:06]} Nxd4 {[%clk 01:30:20]} {[%emt 00:00:06]} 10.
Nxd4 {[%clk 01:22:34]} {[%emt 00:01:54]} exd4 {[%clk 01:30:48]} {[%emt
00:00:02]} 11. Nd2 {[%clk 01:16:20]} {[%emt 00:06:44]} Qb6 {[%clk 01:26:45]}
{[%emt 00:04:31]} 12. Nf3 {[%clk 01:12:08]} {[%emt 00:04:44]} Bc5 {[%clk
01:22:30]} {[%emt 00:04:44]} 13. Bf4 {[%clk 01:05:42]} {[%emt 00:06:57]} d6
{[%clk 01:16:47]} {[%emt 00:06:11]} 14. a3 {[%clk 01:00:49]} {[%emt 00:05:25]}
a5 {[%clk 01:13:18]} {[%emt 00:03:59]} 15. b4 {[%clk 00:53:45]} {[%emt
00:07:34]} axb4 {[%clk 01:13:37]} {[%emt 00:00:11]} 16. axb4 {[%clk 00:54:08]}
{[%emt 00:00:07]} Rxa1 {[%clk 01:13:56]} {[%emt 00:00:10]} 17. Qxa1 {[%clk
00:54:35]} {[%emt 00:00:04]} Bxb4 {[%clk 01:12:23]} {[%emt 00:02:03]} 18. Qxd4
{[%clk 00:53:55]} {[%emt 00:01:10]} Qxd4 {[%clk 01:12:33]} {[%emt 00:00:20]} 19.
Nxd4 {[%clk 00:54:20]} {[%emt 00:00:05]} O-O {[%clk 01:09:25]} {[%emt
00:03:37]} 20. Rb1 {[%clk 00:49:59]} {[%emt 00:04:50]} Bc5 {[%clk 01:08:58]}
{[%emt 00:00:58]} 21. Nxb5 {[%clk 00:49:18]} {[%emt 00:01:12]} d5 {[%clk
01:08:56]} {[%emt 00:00:31]} 1/2-1/2

[Event "Pobeskydi 2026"]
[Site "Frydek-Mistek, Czech Republic"]
[Date "2026.04.02"]
[Round "2.3"]
[White "Durana, Jonas"]
[Black "Osina, Jaromir"]
[Result "1-0"]
[TimeControl "90 min+30s/move"]
[WhiteTitle "-"]
[BlackTitle "-"]
[WhiteFideId "73619663"]
[BlackFideId "23712759"]
[WhiteElo "2183"]
[BlackElo "1972"]

1. e4 {[%clk 01:30:50]} {[%emt 00:00:01]} e6 {[%clk 01:30:43]} {[%emt
00:00:26]} 2. d4 {[%clk 01:31:15]} {[%emt 00:00:04]} d5 {[%clk 01:31:11]}
{[%emt 00:00:03]} 3. e5 {[%clk 01:31:38]} {[%emt 00:00:07]} c5 {[%clk
01:31:36]} {[%emt 00:00:05]} 4. c3 {[%clk 01:32:03]} {[%emt 00:00:04]} Nc6
{[%clk 01:31:10]} {[%emt 00:00:56]} 5. Nf3 {[%clk 01:32:26]} {[%emt 00:00:07]}
Qb6 {[%clk 01:30:14]} {[%emt 00:01:27]} 6. Bd3 {[%clk 01:32:49]} {[%emt
00:00:06]} Bd7 {[%clk 01:30:16]} {[%emt 00:00:28]} 7. O-O {[%clk 01:33:08]}
{[%emt 00:00:10]} cxd4 {[%clk 01:29:49]} {[%emt 00:00:58]} 8. Re1 {[%clk
01:33:25]} {[%emt 00:00:11]} Nge7 {[%clk 01:24:57]} {[%emt 00:05:23]} 9. h4
{[%clk 01:33:48]} {[%emt 00:00:06]} Rc8 {[%clk 01:22:25]} {[%emt 00:03:03]} 10.
h5 {[%clk 01:34:11]} {[%emt 00:00:07]} h6 {[%clk 01:22:28]} {[%emt 00:00:27]}
11. a3 {[%clk 01:34:31]} {[%emt 00:00:09]} dxc3 {[%clk 01:19:59]} {[%emt
00:03:00]} 12. Nxc3 {[%clk 01:33:57]} {[%emt 00:01:04]} Na5 {[%clk 01:18:31]}
{[%emt 00:01:58]} 13. b4 {[%clk 01:10:42]} {[%emt 00:23:46]} Rxc3 {[%clk
01:10:57]} {[%emt 00:08:04]} 14. Be3 {[%clk 01:08:43]} {[%emt 00:02:28]} Qc7
{[%clk 01:05:06]} {[%emt 00:06:21]} 15. bxa5 {[%clk 01:09:07]} {[%emt
00:00:07]} Nc6 {[%clk 01:04:35]} {[%emt 00:01:01]} 16. a6 {[%clk 01:06:27]}
{[%emt 00:03:10]} b6 {[%clk 01:02:26]} {[%emt 00:02:39]} 17. Rc1 {[%clk
01:04:54]} {[%emt 00:02:03]} Nxe5 {[%clk 00:55:01]} {[%emt 00:07:54]} 18. Nxe5
{[%clk 01:02:03]} {[%emt 00:03:21]} Qxe5 {[%clk 00:54:54]} {[%emt 00:00:38]} 19.
Bxb6 {[%clk 01:01:40]} {[%emt 00:00:53]} Bxa3 {[%clk 00:46:01]} {[%emt
00:09:23]} 20. Rb1 {[%clk 00:53:14]} {[%emt 00:08:55]} Qd6 {[%clk 00:42:31]}
{[%emt 00:04:00]} 21. Bxa7 {[%clk 00:51:38]} {[%emt 00:02:06]} O-O {[%clk
00:41:24]} {[%emt 00:01:37]} 22. Bd4 {[%clk 00:50:44]} {[%emt 00:01:25]} Rcc8
{[%clk 00:38:53]} {[%emt 00:03:00]} 23. Rb6 {[%clk 00:47:42]} {[%emt 00:03:32]}
Qf4 {[%clk 00:34:32]} {[%emt 00:04:51]} 24. g3 {[%clk 00:46:51]} {[%emt
00:01:21]} Qg5 {[%clk 00:33:49]} {[%emt 00:01:12]} 25. Qb3 {[%clk 00:36:46]}
{[%emt 00:10:36]} Qe7 {[%clk 00:27:47]} {[%emt 00:06:33]} 26. Rb7 {[%clk
00:34:28]} {[%emt 00:02:48]} Bd6 {[%clk 00:26:31]} {[%emt 00:01:46]} 27. Bb5
{[%clk 00:15:37]} {[%emt 00:19:21]} Rc7 {[%clk 00:25:20]} {[%emt 00:01:41]} 28.
Rxc7 {[%clk 00:15:46]} {[%emt 00:00:19]} Bxc7 {[%clk 00:25:46]} {[%emt
00:00:06]} 29. Rc1 {[%clk 00:16:02]} {[%emt 00:00:14]} Bd6 {[%clk 00:23:25]}
{[%emt 00:02:50]} 30. Bxd7 {[%clk 00:10:08]} {[%emt 00:06:25]} Qxd7 {[%clk
00:23:53]} {[%emt 00:00:03]} 31. Qc3 {[%clk 00:10:19]} {[%emt 00:00:18]} f6
{[%clk 00:21:17]} {[%emt 00:03:06]} 32. Qc6 {[%clk 00:10:41]} {[%emt 00:00:07]}
Qxc6 {[%clk 00:10:22]} {[%emt 00:11:25]} 33. Rxc6 {[%clk 00:10:59]} {[%emt
00:00:12]} Be5 {[%clk 00:10:49]} {[%emt 00:00:03]} 34. Bc5 {[%clk 00:11:21]}
{[%emt 00:00:08]} Ra8 {[%clk 00:08:29]} {[%emt 00:02:51]} 35. a7 {[%clk
00:11:28]} {[%emt 00:00:23]} f5 {[%clk 00:04:52]} {[%emt 00:04:07]} 36. f4
{[%clk 00:11:54]} {[%emt 00:00:04]} Bf6 {[%clk 00:04:57]} {[%emt 00:00:24]} 37.
Rb6 {[%clk 00:12:01]} {[%emt 00:00:21]} 1-0

[Event "Pobeskydi 2026"]
[Site "Frydek-Mistek, Czech Republic"]
[Date "2026.04.02"]
[Round "2.4"]
[White "Zeman, Daniel Nikolas"]
[Black "Sarkozi, Szabolcs"]
[Result "1-0"]
[TimeControl "90 min+30s/move"]
[WhiteTitle "-"]
[BlackTitle "-"]
[WhiteFideId "23717130"]
[BlackFideId "14941660"]
[WhiteElo "1957"]
[BlackElo "2117"]

1. e4 {[%clk 01:30:57]} {[%emt 00:00:03]} d5 {[%clk 01:30:47]} {[%emt
00:00:14]} 2. exd5 {[%clk 01:31:21]} {[%emt 00:00:06]} Qxd5 {[%clk 01:31:11]}
{[%emt 00:00:05]} 3. Nc3 {[%clk 01:31:12]} {[%emt 00:00:40]} Qd6 {[%clk
01:31:35]} {[%emt 00:00:06]} 4. d4 {[%clk 01:31:05]} {[%emt 00:00:38]} Nf6
{[%clk 01:31:56]} {[%emt 00:00:08]} 5. Nf3 {[%clk 01:30:48]} {[%emt 00:00:48]}
Nc6 {[%clk 01:32:09]} {[%emt 00:00:13]} 6. Bc4 {[%clk 01:22:39]} {[%emt
00:08:43]} Bg4 {[%clk 01:24:13]} {[%emt 00:08:25]} 7. Be3 {[%clk 01:23:03]}
{[%emt 00:00:07]} a6 {[%clk 01:14:39]} {[%emt 00:10:04]} 8. Qd2 {[%clk
01:20:19]} {[%emt 00:03:13]} Bxf3 {[%clk 01:12:40]} {[%emt 00:02:29]} 9. gxf3
{[%clk 01:20:15]} {[%emt 00:00:34]} e5 {[%clk 01:12:23]} {[%emt 00:00:47]} 10.
d5 {[%clk 01:16:42]} {[%emt 00:04:03]} Na5 {[%clk 01:00:50]} {[%emt 00:12:03]}
11. Be2 {[%clk 01:15:28]} {[%emt 00:01:44]} b5 {[%clk 00:53:07]} {[%emt
00:08:14]} 12. Ne4 {[%clk 01:14:31]} {[%emt 00:01:27]} Qb4 {[%clk 00:45:18]}
{[%emt 00:08:18]} 13. Nxf6+ {[%clk 01:10:51]} {[%emt 00:04:11]} gxf6 {[%clk
00:45:33]} {[%emt 00:00:15]} 14. Qxb4 {[%clk 01:09:17]} {[%emt 00:02:03]} Bxb4+
{[%clk 00:45:50]} {[%emt 00:00:13]} 15. c3 {[%clk 01:09:31]} {[%emt 00:00:17]}
Bd6 {[%clk 00:41:29]} {[%emt 00:04:51]} 16. b4 {[%clk 01:07:06]} {[%emt
00:02:55]} Nc4 {[%clk 00:37:25]} {[%emt 00:04:34]} 17. a4 {[%clk 00:54:41]}
{[%emt 00:12:55]} Ke7 {[%clk 00:33:41]} {[%emt 00:04:13]} 18. Rg1 {[%clk
00:53:43]} {[%emt 00:01:29]} Rhg8 {[%clk 00:25:02]} {[%emt 00:09:09]} 19. Rxg8
{[%clk 00:52:28]} {[%emt 00:01:45]} Rxg8 {[%clk 00:25:26]} {[%emt 00:00:05]} 20.
Kf1 {[%clk 00:48:15]} {[%emt 00:04:43]} f5 {[%clk 00:16:49]} {[%emt 00:09:07]}
21. axb5 {[%clk 00:44:19]} {[%emt 00:04:27]} axb5 {[%clk 00:14:19]} {[%emt
00:03:00]} 22. Ra7 {[%clk 00:41:48]} {[%emt 00:03:01]} f4 {[%clk 00:08:28]}
{[%emt 00:06:21]} 23. Bc5 {[%clk 00:40:21]} {[%emt 00:01:56]} Kd7 {[%clk
00:04:25]} {[%emt 00:04:34]} 24. Bd3 {[%clk 00:34:59]} {[%emt 00:05:51]} e4
{[%clk 00:00:40]} {[%emt 00:04:15]} 25. Bxe4 {[%clk 00:32:53]} {[%emt
00:02:36]} Nd2+ {[%clk 00:00:52]} {[%emt 00:00:19]} 26. Ke2 {[%clk 00:33:12]}
{[%emt 00:00:11]} Nxe4 {[%clk 00:00:34]} {[%emt 00:00:47]} 27. fxe4 {[%clk
00:33:36]} {[%emt 00:00:07]} f3+ {[%clk 00:00:40]} {[%emt 00:00:24]} 28. Kxf3
{[%clk 00:33:15]} {[%emt 00:00:51]} Bxh2 {[%clk 00:01:04]} {[%emt 00:00:05]} 29.
Ra6 {[%clk 00:28:29]} {[%emt 00:05:16]} Rg6 {[%clk 00:00:33]} {[%emt 00:01:02]}
30. Ra8 {[%clk 00:27:17]} {[%emt 00:01:42]} Be5 {[%clk 00:00:45]} {[%emt
00:00:19]} 31. Rf8 {[%clk 00:23:36]} {[%emt 00:04:10]} Rf6+ {[%clk 00:00:54]}
{[%emt 00:00:20]} 32. Ke3 {[%clk 00:24:04]} {[%emt 00:00:02]} Bf4+ {[%clk
00:00:34]} {[%emt 00:00:50]} 33. Kd4 {[%clk 00:22:21]} {[%emt 00:02:13]} Bd6
{[%clk 00:00:32]} {[%emt 00:00:33]} 34. Bxd6 {[%clk 00:22:27]} {[%emt
00:00:24]} cxd6 {[%clk 00:00:59]} {[%emt 00:00:02]} 35. Ke3 {[%clk 00:22:14]}
{[%emt 00:00:43]} Ke7 {[%clk 00:01:25]} {[%emt 00:00:05]} 36. Ra8 {[%clk
00:20:58]} {[%emt 00:01:45]} Rg6 {[%clk 00:01:33]} {[%emt 00:00:22]} 37. Ra7+
{[%clk 00:18:55]} {[%emt 00:02:34]} Kf8 {[%clk 00:01:21]} {[%emt 00:00:42]} 38.
c4 {[%clk 00:15:46]} {[%emt 00:03:39]} bxc4 {[%clk 00:01:24]} {[%emt 00:00:26]}
39. b5 {[%clk 00:16:12]} {[%emt 00:00:05]} Rg1 {[%clk 00:01:32]} {[%emt
00:00:21]} 40. b6 {[%clk 00:16:21]} {[%emt 00:00:22]} Rb1 {[%clk 00:01:52]}
{[%emt 00:00:10]} 41. b7 {[%clk 00:16:46]} {[%emt 00:00:05]} Kg7 {[%clk
00:01:56]} {[%emt 00:00:26]} 42. e5 {[%clk 00:16:53]} {[%emt 00:00:23]} dxe5
{[%clk 00:00:47]} {[%emt 00:01:39]} 43. d6 {[%clk 00:17:22]} {[%emt 00:00:01]}
Rb3+ {[%clk 00:00:32]} {[%emt 00:00:45]} 44. Ke4 {[%clk 00:15:00]} {[%emt
00:02:52]} Kf6 {[%clk 00:00:31]} {[%emt 00:00:31]} 45. d7 {[%clk 00:15:21]}
{[%emt 00:00:09]} Ke6 {[%clk 00:00:40]} {[%emt 00:00:22]} 46. d8=N+ {[%clk
00:14:39]} {[%emt 00:01:11]} Kd6 {[%clk 00:00:33]} {[%emt 00:00:37]} 47. Ra8
{[%clk 00:12:25]} {[%emt 00:02:44]} Kc7 {[%clk 00:00:35]} {[%emt 00:00:27]} 48.
Rc8+ {[%clk 00:12:47]} {[%emt 00:00:08]} Kd7 {[%clk 00:00:31]} {[%emt
00:00:35]} 49. b8=Q {[%clk 00:12:53]} {[%emt 00:00:23]} f5+ {[%clk 00:00:32]}
{[%emt 00:00:29]} 50. Kxe5 {[%clk 00:13:10]} {[%emt 00:00:14]} Rxb8 {[%clk
00:00:47]} {[%emt 00:00:15]} 51. Rxb8 {[%clk 00:13:36]} {[%emt 00:00:05]} c3
{[%clk 00:01:10]} {[%emt 00:00:06]} 52. Rb3 {[%clk 00:13:58]} {[%emt 00:00:08]}
c2 {[%clk 00:01:23]} {[%emt 00:00:16]} 53. Rc3 {[%clk 00:14:27]} {[%emt
00:00:02]} 1-0